[Event "Titled Tuesday Blitz August 3 2021"]
[White "Firat, Burak"]
[Black "Diaz Perez, Michel Alejandro"]
[WhiteFideId "6305881"]
[BlackFideId "3517179"]
[WhiteElo "2531"]
[BlackElo "2337"]
[Result "1-0"]
[Round "02"]
[TimeControl "180+1"]
[Date "2021.08.03"]
[WhiteClock "0:00:11"]
[BlackClock "0:00:09"]

1. Nf3 {[%clk 0:03:00]}  Nf6 {[%clk 0:02:58]} 2. c4 {[%clk 0:03:00]}  e6 {[%clk 0:02:57]} 3. Nc3 {[%clk 0:03:00]}  d5 {[%clk 0:02:57]} 4. d4 {[%clk 0:03:01]}  Nbd7 {[%clk 0:02:58]} 5. Qc2 {[%clk 0:02:58]}  c6 {[%clk 0:02:42]} 6. e4 {[%clk 0:02:43]}  dxe4 {[%clk 0:02:38]} 7. Nxe4 {[%clk 0:02:44]}  Nxe4 {[%clk 0:02:38]} 8. Qxe4 {[%clk 0:02:45]}  Nf6 {[%clk 0:02:38]} 9. Qc2 {[%clk 0:02:44]}  c5 {[%clk 0:02:32]} 10. Be3 {[%clk 0:02:37]}  cxd4 {[%clk 0:02:29]} 11. Bxd4 {[%clk 0:02:38]}  Bb4+ {[%clk 0:02:25]} 12. Bc3 {[%clk 0:02:31]}  Qa5 {[%clk 0:02:25]} 13. Bxb4 {[%clk 0:02:26]}  Qxb4+ {[%clk 0:02:26]} 14. Qd2 {[%clk 0:02:27]}  Qxd2+ {[%clk 0:02:24]} 15. Kxd2 {[%clk 0:02:28]}  Bd7 {[%clk 0:02:24]} 16. Ne5 {[%clk 0:02:20]}  Ke7 {[%clk 0:02:23]} 17. Be2 {[%clk 0:02:12]}  Rhd8 {[%clk 0:02:21]} 18. Ke3 {[%clk 0:02:09]}  Rac8 {[%clk 0:02:10]} 19. Rhd1 {[%clk 0:02:04]}  Be8 {[%clk 0:02:08]} 20. Bf3 {[%clk 0:01:59]}  Rxd1 {[%clk 0:01:54]} 21. Rxd1 {[%clk 0:01:58]}  b5 {[%clk 0:01:55]} 22. cxb5 {[%clk 0:01:35]}  Bxb5 {[%clk 0:01:54]} 23. a4 {[%clk 0:01:35]}  Be8 {[%clk 0:01:30]} 24. b4 {[%clk 0:01:34]}  Rc3+ {[%clk 0:01:20]} 25. Kd4 {[%clk 0:01:33]}  Rc2 {[%clk 0:01:19]} 26. b5 {[%clk 0:01:22]}  Ra2 {[%clk 0:01:15]} 27. Kc5 {[%clk 0:01:10]}  Rxa4 {[%clk 0:01:12]} 28. Nc6+ {[%clk 0:01:04]}  Bxc6 {[%clk 0:00:48]} 29. bxc6 {[%clk 0:01:05]}  Ra2 {[%clk 0:00:47]} 30. Kb5 {[%clk 0:00:54]}  Rc2 {[%clk 0:00:42]} 31. Ra1 {[%clk 0:00:53]}  Rb2+ {[%clk 0:00:37]} 32. Kc5 {[%clk 0:00:52]}  Rc2+ {[%clk 0:00:37]} 33. Kd4 {[%clk 0:00:50]}  Rxf2 {[%clk 0:00:16]} 34. Rxa7+ {[%clk 0:00:48]}  Kd6 {[%clk 0:00:15]} 35. Rxf7 {[%clk 0:00:26]}  e5+ {[%clk 0:00:15]} 36. Ke3 {[%clk 0:00:21]}  Ng4+ {[%clk 0:00:14]} 37. Kd3 {[%clk 0:00:18]}  e4+ {[%clk 0:00:07]} 38. Kxe4 {[%clk 0:00:12]}  Nxh2 {[%clk 0:00:07]} 39. c7 {[%clk 0:00:11]}  Rc2 {[%clk 0:00:07]} 40. Rxg7 {[%clk 0:00:10]}  Rxc7 {[%clk 0:00:07]} 41. Rxc7 {[%clk 0:00:09]}  Kxc7 {[%clk 0:00:08]} 42. Be2 {[%clk 0:00:10]}  h5 {[%clk 0:00:05]} 43. Kf4 {[%clk 0:00:09]}  Kd6 {[%clk 0:00:05]} 44. Kg3 {[%clk 0:00:09]}  Ng4 {[%clk 0:00:04]} 45. Bxg4 {[%clk 0:00:10]}  hxg4 {[%clk 0:00:05]} 46. Kxg4 {[%clk 0:00:11]}  Ke6 {[%clk 0:00:06]} 47. Kg5 {[%clk 0:00:10]}  Kf7 {[%clk 0:00:07]} 48. g3 {[%clk 0:00:09]}  Kf8 {[%clk 0:00:06]} 49. Kf6 {[%clk 0:00:08]}  Kg8 {[%clk 0:00:06]} 50. Kg6 {[%clk 0:00:09]}  Kh8 {[%clk 0:00:04]} 51. Kf7 {[%clk 0:00:04]}  Kh7 {[%clk 0:00:05]} 52. Kf6 {[%clk 0:00:04]}  Kh6 {[%clk 0:00:04]} 53. g4 {[%clk 0:00:04]}  Kh7 {[%clk 0:00:04]} 54. g5 {[%clk 0:00:04]}  Kg8 {[%clk 0:00:04]} 55. Kg6 {[%clk 0:00:05]}  Kh8 {[%clk 0:00:04]} 56. Kf7 {[%clk 0:00:05]}  Kh7 {[%clk 0:00:04]} 57. g6+ {[%clk 0:00:06]}  Kh6 {[%clk 0:00:05]} 58. g7 {[%clk 0:00:06]}  Kh5 {[%clk 0:00:06]} 59. g8=Q {[%clk 0:00:07]}  Kh4 {[%clk 0:00:07]} 60. Qg6 {[%clk 0:00:08]}  Kh3 {[%clk 0:00:07]} 61. Kf6 {[%clk 0:00:09]}  Kh2 {[%clk 0:00:07]} 62. Kf5 {[%clk 0:00:09]}  Kh1 {[%clk 0:00:08]} 63. Kf4 {[%clk 0:00:10]}  Kh2 {[%clk 0:00:08]} 64. Qg4 {[%clk 0:00:10]}  Kh1 {[%clk 0:00:08]} 65. Kf3 {[%clk 0:00:11]}  Kh2 {[%clk 0:00:09]} 66. Qg2# {[%clk 0:00:11]} 1-0


[Site "https://www.chess.com"]

[Event "Titled Tuesday Blitz August 3 2021"]
[White "Galyas, Miklos"]
[Black "Lintchevski, Daniil"]
[WhiteFideId "707244"]
[BlackFideId "4171055"]
[WhiteElo "2409"]
[BlackElo "2505"]
[Result "0-1"]
[Round "02"]
[TimeControl "180+1"]
[Date "2021.08.03"]
[WhiteClock "0:00:44"]
[BlackClock "0:00:47"]

1. c4 {[%clk 0:02:54]}  c5 {[%clk 0:03:00]} 2. g3 {[%clk 0:02:53]}  g6 {[%clk 0:02:59]} 3. Bg2 {[%clk 0:02:53]}  Bg7 {[%clk 0:03:00]} 4. Nc3 {[%clk 0:02:53]}  Nc6 {[%clk 0:03:01]} 5. Nf3 {[%clk 0:02:53]}  e6 {[%clk 0:03:01]} 6. O-O {[%clk 0:02:52]}  Nge7 {[%clk 0:03:02]} 7. e3 {[%clk 0:02:52]}  O-O {[%clk 0:03:01]} 8. d4 {[%clk 0:02:52]}  cxd4 {[%clk 0:03:02]} 9. exd4 {[%clk 0:02:52]}  d5 {[%clk 0:03:02]} 10. cxd5 {[%clk 0:02:49]}  Nxd5 {[%clk 0:03:03]} 11. Re1 {[%clk 0:02:47]}  Nce7 {[%clk 0:02:57]} 12. Bg5 {[%clk 0:02:45]}  h6 {[%clk 0:02:57]} 13. Bd2 {[%clk 0:02:31]}  b6 {[%clk 0:02:55]} 14. Ne5 {[%clk 0:02:30]}  Bb7 {[%clk 0:02:55]} 15. Qc1 {[%clk 0:02:26]}  Kh7 {[%clk 0:02:55]} 16. h4 {[%clk 0:02:23]}  Rc8 {[%clk 0:02:54]} 17. h5 {[%clk 0:02:21]}  Nxc3 {[%clk 0:02:54]} 18. bxc3 {[%clk 0:02:12]}  Bxg2 {[%clk 0:02:54]} 19. Kxg2 {[%clk 0:02:12]}  Qd5+ {[%clk 0:02:54]} 20. Kg1 {[%clk 0:02:11]}  Nf5 {[%clk 0:02:53]} 21. hxg6+ {[%clk 0:02:07]}  fxg6 {[%clk 0:02:53]} 22. Qb1 {[%clk 0:02:03]}  Rc7 {[%clk 0:02:28]} 23. Qd3 {[%clk 0:02:01]}  Rfc8 {[%clk 0:02:19]} 24. a4 {[%clk 0:02:01]}  Bf6 {[%clk 0:02:11]} 25. Rab1 {[%clk 0:01:50]}  Rd8 {[%clk 0:02:03]} 26. Qe2 {[%clk 0:01:44]}  Qa2 {[%clk 0:01:53]} 27. Ra1 {[%clk 0:01:39]}  Qd5 {[%clk 0:01:45]} 28. Qg4 {[%clk 0:01:38]}  Rg7 {[%clk 0:01:40]} 29. Re2 {[%clk 0:01:37]}  h5 {[%clk 0:01:29]} 30. Qh3 {[%clk 0:01:37]}  Kg8 {[%clk 0:01:25]} 31. Rae1 {[%clk 0:01:36]}  Qb3 {[%clk 0:01:18]} 32. g4 {[%clk 0:01:30]}  Nxd4 {[%clk 0:01:18]} 33. Re3 {[%clk 0:01:22]}  Nc2 {[%clk 0:01:16]} 34. gxh5 {[%clk 0:01:19]}  Rxd2 {[%clk 0:01:15]} 35. h6 {[%clk 0:01:14]}  Rgd7 {[%clk 0:01:08]} 36. c4 {[%clk 0:01:12]}  Nxe3 {[%clk 0:01:07]} 37. Qxe6+ {[%clk 0:01:12]}  Kh7 {[%clk 0:01:03]} 38. Qxf6 {[%clk 0:01:07]}  R2d6 {[%clk 0:00:53]} 39. Qf3 {[%clk 0:00:53]}  Rd1 {[%clk 0:00:46]} 40. Nxd7 {[%clk 0:00:44]}  Rxe1+ {[%clk 0:00:47]} 41. Kh2 {[%clk 0:00:44]}  Nf1+ {[%clk 0:00:47]} 0-1


[Site "https://www.chess.com"]

[Event "Titled Tuesday Blitz August 3 2021"]
[White "Gevorgyan, David Sh."]
[Black "Andrews, Todd"]
[WhiteFideId "13303244"]
[BlackFideId "2012456"]
[WhiteElo "2255"]
[BlackElo "2409"]
[Result "0-1"]
[Round "02"]
[TimeControl "180+1"]
[Date "2021.08.03"]
[WhiteClock "0:00:03"]
[BlackClock "0:00:14"]

1. d4 {[%clk 0:03:00]}  Nf6 {[%clk 0:02:59]} 2. c4 {[%clk 0:03:00]}  c5 {[%clk 0:03:00]} 3. d5 {[%clk 0:03:00]}  b5 {[%clk 0:03:00]} 4. cxb5 {[%clk 0:03:00]}  a6 {[%clk 0:03:01]} 5. b6 {[%clk 0:03:01]}  e6 {[%clk 0:03:01]} 6. Nc3 {[%clk 0:03:02]}  Nxd5 {[%clk 0:03:00]} 7. Nxd5 {[%clk 0:03:01]}  exd5 {[%clk 0:03:01]} 8. Qxd5 {[%clk 0:02:59]}  Nc6 {[%clk 0:03:02]} 9. e3 {[%clk 0:02:45]}  Be7 {[%clk 0:03:02]} 10. Nf3 {[%clk 0:02:32]}  Rb8 {[%clk 0:02:58]} 11. Bd2 {[%clk 0:02:21]}  O-O {[%clk 0:02:55]} 12. Bc3 {[%clk 0:02:19]}  Rxb6 {[%clk 0:02:55]} 13. h4 {[%clk 0:02:09]}  Nb4 {[%clk 0:02:36]} 14. Qd1 {[%clk 0:01:33]}  d5 {[%clk 0:02:24]} 15. a3 {[%clk 0:01:33]}  Nc6 {[%clk 0:01:58]} 16. Be2 {[%clk 0:01:32]}  Bf5 {[%clk 0:01:43]} 17. O-O {[%clk 0:01:23]}  Be4 {[%clk 0:01:40]} 18. g3 {[%clk 0:01:20]}  Bf6 {[%clk 0:01:37]} 19. Qc1 {[%clk 0:01:06]}  d4 {[%clk 0:01:25]} 20. Bd2 {[%clk 0:01:06]}  d3 {[%clk 0:01:22]} 21. Bd1 {[%clk 0:00:56]}  Bxb2 {[%clk 0:01:22]} 22. Qb1 {[%clk 0:00:55]}  Bxa1 {[%clk 0:01:21]} 23. Qxa1 {[%clk 0:00:56]}  f6 {[%clk 0:00:54]} 24. Bc3 {[%clk 0:00:51]}  Qd5 {[%clk 0:00:53]} 25. Nd2 {[%clk 0:00:48]}  Rfb8 {[%clk 0:00:45]} 26. h5 {[%clk 0:00:39]}  h6 {[%clk 0:00:44]} 27. f3 {[%clk 0:00:22]}  Bh7 {[%clk 0:00:41]} 28. e4 {[%clk 0:00:21]}  Qd6 {[%clk 0:00:36]} 29. Kg2 {[%clk 0:00:15]}  Qe6 {[%clk 0:00:25]} 30. Re1 {[%clk 0:00:08]}  Ne5 {[%clk 0:00:25]} 31. f4 {[%clk 0:00:07]}  Nc4 {[%clk 0:00:21]} 32. e5 {[%clk 0:00:05]}  Nxd2 {[%clk 0:00:20]} 33. Bxd2 {[%clk 0:00:05]}  Rb2 {[%clk 0:00:19]} 34. Qc1 {[%clk 0:00:05]}  Bf5 {[%clk 0:00:15]} 35. Kg1 {[%clk 0:00:03]}  c4 {[%clk 0:00:14]} 0-1


[Site "https://www.chess.com"]

[Event "Titled Tuesday Blitz August 3 2021"]
[White "Gokerkan, Cem Kaan"]
[Black "Levitskiy, Andrey"]
[WhiteFideId "6336760"]
[BlackFideId "14132885"]
[WhiteElo "2361"]
[BlackElo "2323"]
[Result "1-0"]
[Round "02"]
[TimeControl "180+1"]
[Date "2021.08.03"]
[WhiteClock "0:01:57"]
[BlackClock "0:01:10"]

1. e4 {[%clk 0:03:00]}  e6 {[%clk 0:02:32]} 2. d4 {[%clk 0:02:53]}  d5 {[%clk 0:02:32]} 3. Nd2 {[%clk 0:02:54]}  c5 {[%clk 0:02:32]} 4. Ngf3 {[%clk 0:02:53]}  cxd4 {[%clk 0:02:32]} 5. exd5 {[%clk 0:02:54]}  Qxd5 {[%clk 0:02:33]} 6. Bc4 {[%clk 0:02:53]}  Qd6 {[%clk 0:02:33]} 7. O-O {[%clk 0:02:53]}  Nf6 {[%clk 0:02:34]} 8. Nb3 {[%clk 0:02:53]}  Nc6 {[%clk 0:02:35]} 9. Qe2 {[%clk 0:02:54]}  a6 {[%clk 0:02:34]} 10. Rd1 {[%clk 0:02:54]}  Be7 {[%clk 0:02:34]} 11. Nbxd4 {[%clk 0:02:54]}  Nxd4 {[%clk 0:02:33]} 12. Rxd4 {[%clk 0:02:55]}  Qc7 {[%clk 0:02:33]} 13. Bf4 {[%clk 0:02:53]}  Qb6 {[%clk 0:02:18]} 14. Bb3 {[%clk 0:02:17]}  Bd7 {[%clk 0:02:13]} 15. Rad1 {[%clk 0:02:08]}  Bc6 {[%clk 0:02:07]} 16. Ne5 {[%clk 0:02:08]}  Bc5 {[%clk 0:02:03]} 17. Nxf7 {[%clk 0:02:02]}  Bb5 {[%clk 0:01:25]} 18. Nd6+ {[%clk 0:01:56]}  Qxd6 {[%clk 0:01:14]} 19. Rxd6 {[%clk 0:01:56]}  Bxe2 {[%clk 0:01:10]} 20. Rxe6+ {[%clk 0:01:56]}  Kf8 {[%clk 0:01:10]} 21. Rxe2 {[%clk 0:01:57]} 1-0


[Site "https://www.chess.com"]

[Event "Titled Tuesday Blitz August 3 2021"]
[White "Goltsev, Dmitry"]
[Black "De Waele, Warre"]
[WhiteFideId "24176710"]
[BlackFideId "241156"]
[WhiteElo "2366"]
[BlackElo "2183"]
[Result "1-0"]
[Round "02"]
[TimeControl "180+1"]
[Date "2021.08.03"]
[WhiteClock "0:00:31"]
[BlackClock "0:00:24"]

1. e4 {[%clk 0:03:00]}  e5 {[%clk 0:02:59]} 2. Qh5 {[%clk 0:02:59]}  Nc6 {[%clk 0:02:58]} 3. Bc4 {[%clk 0:02:59]}  g6 {[%clk 0:02:58]} 4. Qf3 {[%clk 0:02:59]}  Nf6 {[%clk 0:02:57]} 5. Ne2 {[%clk 0:02:59]}  Bg7 {[%clk 0:02:57]} 6. O-O {[%clk 0:02:59]}  O-O {[%clk 0:02:56]} 7. d3 {[%clk 0:02:59]}  d6 {[%clk 0:02:55]} 8. Nbc3 {[%clk 0:02:54]}  Na5 {[%clk 0:02:53]} 9. Nd5 {[%clk 0:02:50]}  c6 {[%clk 0:02:51]} 10. Nxf6+ {[%clk 0:02:47]}  Qxf6 {[%clk 0:02:51]} 11. Qxf6 {[%clk 0:02:47]}  Bxf6 {[%clk 0:02:51]} 12. Bb3 {[%clk 0:02:47]}  Nxb3 {[%clk 0:02:44]} 13. axb3 {[%clk 0:02:48]}  Be6 {[%clk 0:02:44]} 14. Be3 {[%clk 0:02:41]}  a6 {[%clk 0:02:43]} 15. b4 {[%clk 0:02:39]}  d5 {[%clk 0:02:42]} 16. Bc5 {[%clk 0:02:35]}  Rfe8 {[%clk 0:02:40]} 17. f3 {[%clk 0:02:35]}  h5 {[%clk 0:02:35]} 18. c3 {[%clk 0:02:34]}  Rad8 {[%clk 0:02:34]} 19. Rfd1 {[%clk 0:02:27]}  Rd7 {[%clk 0:02:28]} 20. Kf2 {[%clk 0:02:27]}  Red8 {[%clk 0:02:19]} 21. Bb6 {[%clk 0:02:27]}  Rc8 {[%clk 0:02:19]} 22. d4 {[%clk 0:02:24]}  Re8 {[%clk 0:02:02]} 23. dxe5 {[%clk 0:02:20]}  Bxe5 {[%clk 0:02:01]} 24. f4 {[%clk 0:02:20]}  Bg7 {[%clk 0:02:00]} 25. e5 {[%clk 0:02:20]}  f6 {[%clk 0:01:59]} 26. exf6 {[%clk 0:02:11]}  Bxf6 {[%clk 0:01:59]} 27. Nd4 {[%clk 0:02:10]}  Bg4 {[%clk 0:01:47]} 28. Re1 {[%clk 0:02:07]}  Rde7 {[%clk 0:01:47]} 29. h3 {[%clk 0:02:03]}  Bxd4+ {[%clk 0:01:40]} 30. Bxd4 {[%clk 0:01:59]}  Rxe1 {[%clk 0:01:41]} 31. Rxe1 {[%clk 0:01:59]}  Rxe1 {[%clk 0:01:42]} 32. Kxe1 {[%clk 0:02:00]}  Bf5 {[%clk 0:01:39]} 33. Kf2 {[%clk 0:01:59]}  Kf7 {[%clk 0:01:39]} 34. Be5 {[%clk 0:02:00]}  Ke6 {[%clk 0:01:38]} 35. Ke3 {[%clk 0:02:00]}  Be4 {[%clk 0:01:38]} 36. g3 {[%clk 0:02:00]}  Bg2 {[%clk 0:01:38]} 37. h4 {[%clk 0:02:00]}  Kd7 {[%clk 0:01:31]} 38. Kd4 {[%clk 0:02:00]}  Kc8 {[%clk 0:01:28]} 39. Bd6 {[%clk 0:01:56]}  Be4 {[%clk 0:01:27]} 40. Ke5 {[%clk 0:01:56]}  Kd7 {[%clk 0:01:20]} 41. Bc5 {[%clk 0:01:54]}  Bd3 {[%clk 0:01:08]} 42. Kf6 {[%clk 0:01:31]}  Be4 {[%clk 0:00:52]} 43. Kg5 {[%clk 0:01:14]}  Ke6 {[%clk 0:00:50]} 44. g4 {[%clk 0:01:12]}  hxg4 {[%clk 0:00:49]} 45. Kxg4 {[%clk 0:01:13]}  Kf7 {[%clk 0:00:44]} 46. Kg5 {[%clk 0:01:08]}  Bb1 {[%clk 0:00:44]} 47. Bd4 {[%clk 0:01:07]}  Bc2 {[%clk 0:00:44]} 48. Be5 {[%clk 0:01:04]}  Bd3 {[%clk 0:00:44]} 49. Kg4 {[%clk 0:01:04]}  Bf5+ {[%clk 0:00:44]} 50. Kf3 {[%clk 0:01:04]}  Be4+ {[%clk 0:00:44]} 51. Ke3 {[%clk 0:01:05]}  Bb1 {[%clk 0:00:45]} 52. Kd4 {[%clk 0:01:05]}  Ke6 {[%clk 0:00:42]} 53. Kc5 {[%clk 0:01:05]}  Kd7 {[%clk 0:00:43]} 54. Bf6 {[%clk 0:01:04]}  Bf5 {[%clk 0:00:42]} 55. Bd4 {[%clk 0:01:04]}  Be4 {[%clk 0:00:42]} 56. Bf2 {[%clk 0:01:02]}  Bb1 {[%clk 0:00:42]} 57. Kd4 {[%clk 0:01:02]}  Ke6 {[%clk 0:00:42]} 58. Be1 {[%clk 0:01:02]}  Bc2 {[%clk 0:00:41]} 59. Bd2 {[%clk 0:01:00]}  Bb1 {[%clk 0:00:42]} 60. Kc5 {[%clk 0:00:58]}  Kd7 {[%clk 0:00:42]} 61. Be3 {[%clk 0:00:57]}  Bc2 {[%clk 0:00:42]} 62. Bd4 {[%clk 0:00:58]}  Bb1 {[%clk 0:00:42]} 63. Be5 {[%clk 0:00:59]}  Bc2 {[%clk 0:00:43]} 64. Kd4 {[%clk 0:00:59]}  Ke6 {[%clk 0:00:43]} 65. Ke3 {[%clk 0:01:00]}  Kf5 {[%clk 0:00:43]} 66. Kf3 {[%clk 0:01:01]}  Ke6 {[%clk 0:00:43]} 67. Kg4 {[%clk 0:01:02]}  Kf7 {[%clk 0:00:43]} 68. Kg5 {[%clk 0:01:03]}  Bd3 {[%clk 0:00:43]} 69. h5 {[%clk 0:01:03]}  gxh5 {[%clk 0:00:44]} 70. Kxh5 {[%clk 0:01:00]}  Ke6 {[%clk 0:00:45]} 71. Kh6 {[%clk 0:00:59]}  Bf5 {[%clk 0:00:45]} 72. Kg7 {[%clk 0:01:00]}  Bd3 {[%clk 0:00:45]} 73. Kf8 {[%clk 0:01:00]}  Kd7 {[%clk 0:00:44]} 74. Kf7 {[%clk 0:01:00]}  b6 {[%clk 0:00:37]} 75. Kf6 {[%clk 0:00:57]}  a5 {[%clk 0:00:37]} 76. bxa5 {[%clk 0:00:54]}  bxa5 {[%clk 0:00:38]} 77. f5 {[%clk 0:00:55]}  a4 {[%clk 0:00:38]} 78. Bd4 {[%clk 0:00:49]}  Be4 {[%clk 0:00:36]} 79. Bc5 {[%clk 0:00:45]}  Bd3 {[%clk 0:00:35]} 80. Ke5 {[%clk 0:00:44]}  Ke8 {[%clk 0:00:33]} 81. Ke6 {[%clk 0:00:43]}  Bc4 {[%clk 0:00:31]} 82. Kd6 {[%clk 0:00:41]}  Bb5 {[%clk 0:00:30]} 83. Ke6 {[%clk 0:00:35]}  Bc4 {[%clk 0:00:29]} 84. Kf6 {[%clk 0:00:35]}  Bb5 {[%clk 0:00:28]} 85. Kg7 {[%clk 0:00:34]}  Bc4 {[%clk 0:00:28]} 86. Bd4 {[%clk 0:00:31]}  Be2 {[%clk 0:00:24]} 87. Kg6 {[%clk 0:00:31]}  Bf3 {[%clk 0:00:24]} 88. f6 {[%clk 0:00:31]} 1-0


[Site "https://www.chess.com"]

[Event "Titled Tuesday Blitz August 3 2021"]
[White "Golubev, Mikhail"]
[Black "Grabinsky, Aaron"]
[WhiteFideId "14100983"]
[BlackFideId "2087090"]
[WhiteElo "2374"]
[BlackElo "2353"]
[Result "0-1"]
[Round "02"]
[TimeControl "180+1"]
[Date "2021.08.03"]
[WhiteClock "0:00:02"]
[BlackClock "0:00:57"]

1. e4 {[%clk 0:03:00]}  e6 {[%clk 0:02:54]} 2. Nc3 {[%clk 0:02:59]}  d5 {[%clk 0:02:55]} 3. d4 {[%clk 0:02:59]}  Nc6 {[%clk 0:02:55]} 4. Nf3 {[%clk 0:02:56]}  Nf6 {[%clk 0:02:55]} 5. e5 {[%clk 0:02:54]}  Ne4 {[%clk 0:02:55]} 6. Bd3 {[%clk 0:02:54]}  Bb4 {[%clk 0:02:55]} 7. Bd2 {[%clk 0:02:54]}  Nxd2 {[%clk 0:02:55]} 8. Qxd2 {[%clk 0:02:54]}  Bd7 {[%clk 0:02:56]} 9. a3 {[%clk 0:02:50]}  Ba5 {[%clk 0:02:56]} 10. O-O {[%clk 0:02:42]}  O-O {[%clk 0:02:55]} 11. b4 {[%clk 0:02:39]}  Bb6 {[%clk 0:02:55]} 12. Ne2 {[%clk 0:02:39]}  f6 {[%clk 0:02:55]} 13. b5 {[%clk 0:02:11]}  Na5 {[%clk 0:02:36]} 14. exf6 {[%clk 0:02:06]}  gxf6 {[%clk 0:02:35]} 15. Rae1 {[%clk 0:02:03]}  Qe7 {[%clk 0:02:29]} 16. Nf4 {[%clk 0:01:59]}  Qf7 {[%clk 0:02:28]} 17. Re3 {[%clk 0:01:49]}  Kh8 {[%clk 0:02:13]} 18. Nh4 {[%clk 0:01:31]}  Nc4 {[%clk 0:01:55]} 19. Bxc4 {[%clk 0:01:28]}  dxc4 {[%clk 0:01:55]} 20. Rh3 {[%clk 0:00:47]}  Rg8 {[%clk 0:01:52]} 21. a4 {[%clk 0:00:40]}  e5 {[%clk 0:01:47]} 22. Nhg6+ {[%clk 0:00:22]}  Rxg6 {[%clk 0:01:46]} 23. Nxg6+ {[%clk 0:00:22]}  Qxg6 {[%clk 0:01:47]} 24. Rg3 {[%clk 0:00:22]}  Qf7 {[%clk 0:01:39]} 25. dxe5 {[%clk 0:00:22]}  fxe5 {[%clk 0:01:39]} 26. a5 {[%clk 0:00:17]}  Bc5 {[%clk 0:01:38]} 27. Qg5 {[%clk 0:00:15]}  Bd6 {[%clk 0:01:31]} 28. b6 {[%clk 0:00:15]}  axb6 {[%clk 0:01:30]} 29. axb6 {[%clk 0:00:14]}  Rg8 {[%clk 0:01:22]} 30. Qxg8+ {[%clk 0:00:14]}  Qxg8 {[%clk 0:01:23]} 31. Rxg8+ {[%clk 0:00:12]}  Kxg8 {[%clk 0:01:24]} 32. Rd1 {[%clk 0:00:10]}  Bf5 {[%clk 0:01:19]} 33. bxc7 {[%clk 0:00:09]}  Bxc7 {[%clk 0:01:20]} 34. c3 {[%clk 0:00:09]}  Kf7 {[%clk 0:01:14]} 35. Rd5 {[%clk 0:00:08]}  Ke6 {[%clk 0:01:10]} 36. Rb5 {[%clk 0:00:08]}  b6 {[%clk 0:01:10]} 37. f3 {[%clk 0:00:07]}  Kd6 {[%clk 0:01:07]} 38. g4 {[%clk 0:00:07]}  Bd3 {[%clk 0:01:05]} 39. Kg2 {[%clk 0:00:07]}  Kc6 {[%clk 0:01:05]} 40. Rb2 {[%clk 0:00:07]}  b5 {[%clk 0:01:04]} 41. Ra2 {[%clk 0:00:06]}  Bb6 {[%clk 0:01:01]} 42. h4 {[%clk 0:00:06]}  Be3 {[%clk 0:01:00]} 43. Ra6+ {[%clk 0:00:06]}  Kb7 {[%clk 0:00:58]} 44. Re6 {[%clk 0:00:05]}  Bf4 {[%clk 0:00:57]} 45. h5 {[%clk 0:00:03]}  b4 {[%clk 0:00:56]} 46. cxb4 {[%clk 0:00:03]}  c3 {[%clk 0:00:57]} 47. b5 {[%clk 0:00:03]}  c2 {[%clk 0:00:56]} 48. Rc6 {[%clk 0:00:03]}  c1=Q {[%clk 0:00:56]} 49. Rxc1 {[%clk 0:00:02]}  Bxc1 {[%clk 0:00:57]} 50. Kh3 {[%clk 0:00:02]}  h6 {[%clk 0:00:57]} 0-1


[Site "https://www.chess.com"]

[Event "Titled Tuesday Blitz August 3 2021"]
[White "Gontcharov, Vladislav"]
[Black "Darini, Pouria"]
[WhiteFideId "4123492"]
[BlackFideId "12502200"]
[WhiteElo "2503"]
[BlackElo "2489"]
[Result "0-1"]
[Round "02"]
[TimeControl "180+1"]
[Date "2021.08.03"]
[WhiteClock "0:00:02"]
[BlackClock "0:00:07"]

1. e4 {[%clk 0:03:00]}  c5 {[%clk 0:02:59]} 2. Nf3 {[%clk 0:02:56]}  d6 {[%clk 0:03:00]} 3. d4 {[%clk 0:02:55]}  cxd4 {[%clk 0:03:00]} 4. Qxd4 {[%clk 0:02:56]}  Nf6 {[%clk 0:03:00]} 5. c4 {[%clk 0:02:53]}  Nc6 {[%clk 0:03:00]} 6. Qe3 {[%clk 0:02:53]}  Bg4 {[%clk 0:02:52]} 7. Nd4 {[%clk 0:02:50]}  g6 {[%clk 0:02:32]} 8. Nxc6 {[%clk 0:02:45]}  bxc6 {[%clk 0:02:31]} 9. Nc3 {[%clk 0:02:34]}  Bg7 {[%clk 0:02:28]} 10. e5 {[%clk 0:02:31]}  dxe5 {[%clk 0:02:25]} 11. Qxe5 {[%clk 0:02:30]}  O-O {[%clk 0:02:25]} 12. Qf4 {[%clk 0:02:24]}  e5 {[%clk 0:01:49]} 13. Qe3 {[%clk 0:02:17]}  Rb8 {[%clk 0:01:36]} 14. h3 {[%clk 0:02:11]}  Bf5 {[%clk 0:01:30]} 15. g4 {[%clk 0:02:00]}  Be6 {[%clk 0:01:28]} 16. b3 {[%clk 0:01:38]}  Qd4 {[%clk 0:00:49]} 17. Bg2 {[%clk 0:01:21]}  c5 {[%clk 0:00:38]} 18. O-O {[%clk 0:01:19]}  h5 {[%clk 0:00:25]} 19. g5 {[%clk 0:01:05]}  Nd7 {[%clk 0:00:26]} 20. Rd1 {[%clk 0:00:57]}  Qh4 {[%clk 0:00:22]} 21. Ne4 {[%clk 0:00:51]}  Rbd8 {[%clk 0:00:16]} 22. Ba3 {[%clk 0:00:47]}  Bf5 {[%clk 0:00:10]} 23. Rd2 {[%clk 0:00:24]}  Nb6 {[%clk 0:00:07]} 24. Rad1 {[%clk 0:00:20]}  Rd4 {[%clk 0:00:07]} 25. Nxc5 {[%clk 0:00:19]}  Rfd8 {[%clk 0:00:03]} 26. Rxd4 {[%clk 0:00:18]}  exd4 {[%clk 0:00:03]} 27. Qg3 {[%clk 0:00:18]}  Qxg3 {[%clk 0:00:03]} 28. fxg3 {[%clk 0:00:17]}  Bc2 {[%clk 0:00:04]} 29. Rd2 {[%clk 0:00:09]}  d3 {[%clk 0:00:05]} 30. Ne4 {[%clk 0:00:09]}  Bd4+ {[%clk 0:00:05]} 31. Kh2 {[%clk 0:00:08]}  Be3 {[%clk 0:00:06]} 32. Bb4 {[%clk 0:00:07]}  Bxd2 {[%clk 0:00:06]} 33. Bxd2 {[%clk 0:00:08]}  Nd7 {[%clk 0:00:06]} 34. Ba5 {[%clk 0:00:06]}  Re8 {[%clk 0:00:07]} 35. Bc3 {[%clk 0:00:03]}  Re6 {[%clk 0:00:06]} 36. c5 {[%clk 0:00:03]}  a6 {[%clk 0:00:06]} 37. b4 {[%clk 0:00:03]}  Ne5 {[%clk 0:00:06]} 38. a3 {[%clk 0:00:03]}  Nc6 {[%clk 0:00:06]} 39. Nf6+ {[%clk 0:00:03]}  Kf8 {[%clk 0:00:06]} 40. Nd5 {[%clk 0:00:02]}  Re2 {[%clk 0:00:06]} 41. Nc7 {[%clk 0:00:01]}  d2 {[%clk 0:00:06]} 42. Bxd2 {[%clk 0:00:02]}  Rxd2 {[%clk 0:00:07]} 43. Kg1 {[%clk 0:00:02]}  Nd4 {[%clk 0:00:07]} 0-1


[Site "https://www.chess.com"]